bitfinex/quotes_SOLUSD_20240926
["timestamp","ask_amount","ask_price","bid_price","bid_amount"]
[1727319149204,6.98717858,149.32,149.25,22.2645]
[1727319149401,6.98717858,149.32,149.26,1.33982673]
[1727319149618,6.6971,149.32,149.25,22.2645]
[1727319150504,20.15,149.35,149.25,22.2645]
[1727319150727,6.6966,149.33,149.27,15.8744]
[1727319152241,0.25098,149.31,149.27,15.8744]
[1727319154123,0.12549,149.31,149.27,15.8744]
[1727319154426,23.776884,149.32,149.28,1.33957035]
[1727319155108,23.776884,149.32,149.27,16.0894]
[1727319155312,24.027864,149.34,149.28,1.33953188]
[1727319155809,24.027864,149.34,149.27,16.0894]
[1727319160133,6.6969,149.33,149.27,16.0894]
[1727319160422,23.902374,149.31,149.27,16.0894]
[1727319161210,0.12549,149.31,149.27,16.0894]
[1727319164509,0.25098,149.31,149.27,16.0894]
[1727319167423,24.027864,149.29,149.27,16.0894]
[1727319168128,0.25098,149.29,149.27,16.0894]
[1727319174751,23.776884,149.3,149.27,16.0894]
[1727319175241,0.12549,149.3,149.27,16.0894]
[1727319176647,6.6957,149.35,149.28,1.33974737]
[1727319176941,0.2531201,149.38,149.3,6.1633]
[1727319177141,0.2531201,149.38,149.32,16.3893]
[1727319177760,6.9474201,149.38,149.32,16.3893]
[1727319178545,24.027864,149.37,149.32,16.3893]
[1727319178750,6.9474201,149.38,149.32,16.3893]
[1727319179946,24.027864,149.37,149.32,16.3893]
[1727319180251,0.2531201,149.38,149.32,16.3893]
[1727319181625,0.25098,149.37,149.32,16.3893]
[1727319181827,23.776884,149.36,149.32,16.3893]
[1727319182034,24.027864,149.33,149.32,16.3893]
[1727319182443,24.027864,149.33,149.27,15.1911]
[1727319183445,0.25098,149.33,149.27,15.1911]
[1727319185251,0.25098,149.33,149.28,1.33958216]
[1727319185453,23.776884,149.34,149.27,15.1911]
[1727319185676,23.776884,149.34,149.28,1.33936533]
[1727319186837,0.12549,149.37,149.29,16.3791]
[1727319187333,0.2531201,149.38,149.29,16.3791]
[1727319187534,6.9475201,149.38,149.29,16.3791]
[1727319188158,23.776884,149.37,149.29,16.3791]
[1727319188356,30.471684,149.37,149.29,16.3791]
[1727319188553,24.027864,149.34,149.29,16.3791]
[1727319189743,30.723964,149.34,149.29,16.3791]
[1727319189943,24.027864,149.34,149.29,16.3791]
[1727319199145,30.723964,149.34,149.29,16.3791]
[1727319199777,24.027864,149.34,149.29,16.3791]
[1727319200281,0.25098,149.34,149.29,16.3791]
[1727319203865,0.12549,149.34,149.29,16.3791]
[1727319204073,20.2531201,149.38,149.29,16.3791]
[1727319204275,6.6952,149.36,149.29,16.3791]
[1727319205279,24.027864,149.35,149.29,16.3791]
[1727319205882,30.723664,149.35,149.29,16.3791]
[1727319207279,24.027864,149.35,149.29,16.3791]
[1727319213371,30.723564,149.35,149.29,16.3791]
[1727319217070,6.6961,149.34,149.29,16.3791]
[1727319217274,0.25098,149.32,149.29,16.3791]
[1727319222691,23.776884,149.33,149.29,16.3791]
[1727319229670,23.902374,149.34,149.29,16.3791]
[1727319229891,0.12549,149.33,149.29,16.3791]
[1727319239784,0.2531201,149.38,149.3,7.6658063]
[1727319239969,0.2531201,149.38,149.31,15.6534]
[1727319241075,0.25098,149.37,149.31,15.6534]
[1727319242080,0.25098,149.37,149.32,1.339173]
[1727319244596,0.25098,149.37,149.31,15.6534]
[1727319246082,0.25098,149.37,149.32,1.3391727]
[1727319250306,0.25098,149.37,149.31,15.6534]
[1727319252403,0.25098,149.37,149.32,1.33917278]
[1727319254105,0.25098,149.37,149.31,15.6534]
[1727319254106,24.027864,149.37,149.31,15.6534]
[1727319254896,0.25098,149.37,149.31,15.6534]
[1727319256092,0.25098,149.35,149.31,15.6534]
[1727319257689,24.027864,149.33,149.31,15.6534]
[1727319257923,30.724564,149.33,149.27,15.7506]
[1727319259686,44.177864,149.33,149.27,15.7506]
[1727319259890,24.027864,149.3,149.27,15.7506]
[1727319262416,0.25098,149.3,149.27,15.7506]
[1727319282323,0.25098,149.3,149.23,15.9173201]
[1727319284736,0.25098,149.3,149.23,17.25733679]
[1727319288922,0.25098,149.3,149.23,15.9173201]
[1727319290435,23.776884,149.29,149.23,15.9173201]
[1727319290624,0.25098,149.3,149.23,15.9173201]
[1727319290824,0.25098,149.28,149.23,15.9173201]
[1727319295543,0.25098,149.28,149.23,17.25737141]
[1727319297541,0.12549,149.28,149.23,17.25737141]
[1727319298139,13.70845884,149.33,149.23,17.25737141]
[1727319298438,13.70845884,149.33,149.23,15.9173201]
[1727319299223,0.25098,149.31,149.23,15.9173201]
[1727319304143,0.12549,149.27,149.23,15.9173201]
[1727319310646,23.902374,149.28,149.24,1.34000424]
[1727319311523,6.6969,149.33,149.24,1.34000424]
[1727319311944,6.697,149.32,149.23,15.9173201]
[1727319313045,24.027864,149.31,149.23,15.9173201]
[1727319315955,30.725264,149.31,149.23,15.9173201]
[1727319316134,0.25098,149.31,149.23,15.9173201]
[1727319316833,23.776884,149.3,149.23,15.9173201]
[1727319317042,0.25098,149.29,149.24,1.34004367]
[1727319317643,6.6966,149.33,149.24,1.34004367]
[1727319317848,20.0,149.34,149.25,16.18]
[1727319318155,20.0,149.34,149.26,1.33975538]
[1727319318662,20.4031201,149.38,149.28,16.18]
[1727319318952,6.6948,149.37,149.29,1.33946657]
[1727319320237,0.25098,149.35,149.29,1.33946657]
[1727319321758,0.25098,149.35,149.28,16.18]
[1727319324357,0.25098,149.35,149.29,1.33937037]
[1727319324663,0.12549,149.35,149.3,15.2505]
[1727319324961,0.12549,149.35,149.31,1.33928963]
[1727319325334,0.2531201,149.38,149.33,6.0289]
[1727319325530,0.2531201,149.38,149.34,16.58966146]
[1727319325734,0.2531201,149.38,149.34,15.2505]
[1727319325962,0.2531201,149.38,149.35,1.33907378]
[1727319326341,0.2531201,149.38,149.34,15.2505]
[1727319328444,0.2531201,149.38,149.35,1.33870834]
[1727319328963,0.2531201,149.38,149.34,15.2505]
[1727319332141,0.2531201,149.38,149.35,1.33878383]
[1727319332759,0.2531201,149.43,149.36,15.4361]
[1727319333057,0.2531201,149.43,149.37,1.33856913]
[1727319333557,0.2531201,149.43,149.39,15.4361]
[1727319333765,0.2531201,149.43,149.4,1.33853031]
[1727319336058,0.2531201,149.43,149.39,15.4361]
[1727319336758,0.2531201,149.43,149.4,1.33857047]
[1727319336950,0.2531201,149.43,149.39,15.4361]
[1727319338739,0.2531201,149.43,149.4,1.33849024]
[1727319341065,0.2531201,149.43,149.39,15.4361]
[1727319345149,0.25098,149.42,149.39,15.4361]
[1727319360384,0.2531201,149.43,149.39,15.4361]
[1727319363395,0.25098,149.42,149.39,15.4361]
[1727319364593,0.12549,149.42,149.39,15.4361]
[1727319365006,0.2531201,149.43,149.39,16.77471387]
[1727319365406,0.2531201,149.43,149.39,15.4361]
[1727319366593,0.25098,149.42,149.39,15.4361]
[1727319368213,0.25098,149.42,149.34,6.4682]
[1727319368214,0.25098,149.42,149.35,15.2119]
[1727319368417,0.25098,149.4,149.35,15.2119]
[1727319369118,6.94448,149.4,149.35,15.2119]
[1727319369294,0.25098,149.38,149.35,15.2119]
[1727319371609,0.25098,149.38,149.31,15.804]
[1727319371917,0.25098,149.36,149.31,15.804]
[1727319375618,0.25098,149.36,149.31,17.14336519]
[1727319381719,0.2531201,149.43,149.31,17.14336519]
[1727319381910,23.902374,149.4,149.31,17.14336519]
[1727319382110,0.2531201,149.43,149.31,17.14336519]
[1727319382424,0.2531201,149.43,149.31,8.83655845]
[1727319382600,0.2531201,149.43,149.32,15.014]
[1727319382792,0.2531201,149.43,149.33,1.33892644]
[1727319383008,0.2531201,149.43,149.35,6.3547]
[1727319383309,0.2531201,149.43,149.36,1.33880944]
[1727319384618,0.25098,149.42,149.36,1.33880944]
[1727319385926,0.25098,149.42,149.37,16.3597]
[1727319386303,0.25098,149.42,149.37,17.69843873]
[1727319387401,0.25098,149.42,149.37,16.3597]
[1727319387924,0.25098,149.4,149.37,16.3597]
[1727319391718,6.94448,149.4,149.37,16.3597]
[1727319391922,0.25098,149.38,149.32,16.5403]
[1727319394509,0.25098,149.36,149.32,16.5403]
[1727319397125,0.12549,149.36,149.32,17.8795706]
[1727319400907,0.12549,149.36,149.32,16.5403]
[1727319403034,0.12549,149.36,149.32,17.87953984]
[1727319405631,6.6931,149.41,149.32,17.87953984]
[1727319406635,6.6931,149.41,149.32,16.5403]
[1727319406843,24.027864,149.4,149.32,17.87946954]
[1727319407537,24.027864,149.4,149.32,16.5403]
[1727319407721,24.027864,149.4,149.33,1.33916672]
[1727319409422,24.027864,149.4,149.34,1.33909681]
[1727319409623,24.027864,149.4,149.32,16.5403]
[1727319411526,24.027864,149.4,149.33,1.339025]
[1727319411831,24.027864,149.41,149.33,1.339025]
[1727319413444,0.2531201,149.43,149.34,15.4738]
[1727319413645,6.9454201,149.43,149.34,15.4738]
[1727319413941,6.9454201,149.43,149.35,6.6026]
[1727319414143,0.2531201,149.43,149.36,1.33886382]
[1727319414329,0.2531201,149.43,149.37,15.4738]
[1727319414728,0.25098,149.42,149.37,15.4738]
[1727319416551,0.25098,149.4,149.37,15.4738]
[1727319419446,0.2531201,149.43,149.38,6.4127]
[1727319419651,0.2531201,149.47,149.39,17.7844531]
[1727319419959,0.2531201,149.47,149.41,16.446]
[1727319420137,0.2531201,149.47,149.43,16.446]
[1727319420338,0.2531201,149.47,149.44,1.33802925]
[1727319420539,0.2531201,149.47,149.44,23.41057594]
[1727319420724,0.1695656,149.49,149.45,6.4905]
[1727319420921,0.1695656,149.49,149.46,1.33783792]
[1727319422523,0.1695656,149.49,149.45,14.49721904]
[1727319425037,0.12549,149.48,149.45,14.49721904]
[1727319425357,0.12549,149.48,149.45,6.4905]
[1727319426053,0.25098,149.48,149.45,6.4905]
[1727319429535,0.1695656,149.49,149.46,1.33815142]
[1727319429851,0.1695656,149.49,149.46,12.58533912]
[1727319430436,0.1695656,149.49,149.46,11.2471877]
[1727319430756,0.1695656,149.49,149.45,6.4905]
[1727319431438,0.1695656,149.49,149.46,1.33805993]
[1727319431640,0.1695656,149.49,149.45,6.4905]
[1727319433155,0.1695656,149.49,149.46,1.33803888]
[1727319438064,0.1695656,149.49,149.45,6.4905]
[1727319439541,0.1695656,149.49,149.46,15.4397]
[1727319442059,0.1695656,149.49,149.47,1.33789368]
[1727319444668,0.1695656,149.49,149.46,15.4397]
[1727319446970,0.1695656,149.49,149.46,16.77766294]
[1727319448546,0.1695656,149.49,149.46,15.4397]
[1727319449572,0.1695656,149.49,149.47,12.58496316]
[1727319450950,0.1695656,149.49,149.47,12.5848315]
[1727319451577,0.1695656,149.49,149.47,11.2471877]
[1727319451880,0.1695656,149.49,149.47,1.33775174]
[1727319454482,0.1695656,149.49,149.47,11.96382833]
[1727319454981,0.1695656,149.49,149.47,10.62607659]
[1727319455352,0.1695656,149.49,149.48,1.33764707]
[1727319455548,0.1695656,149.49,149.48,1.33764661]
[1727319456184,0.1695656,149.49,149.47,10.62607659]
[1727319456394,0.1695656,149.49,149.48,1.33756674]
[1727319457482,0.1695656,149.49,149.48,1.33751106]
[1727319459569,0.1695656,149.49,149.47,10.62607659]
[1727319459769,0.1695656,149.49,149.47,18.71993868]
[1727319461187,0.1695656,149.49,149.48,11.96358182]
[1727319461685,0.1695656,149.49,149.48,10.62607659]
[1727319462493,0.1695656,149.49,149.48,11.96354709]
[1727319462675,0.1695656,149.49,149.48,10.62607659]
[1727319464686,0.1695656,149.49,149.46,15.4397]
[1727319464897,0.1695656,149.49,149.47,1.33778982]
[1727319465592,0.1695656,149.49,149.46,26.06577659]
[1727319466566,0.1695656,149.49,149.47,10.62607659]
[1727319468505,0.1695656,149.49,149.48,1.33759602]
[1727319468794,0.1695656,149.49,149.48,11.96367261]
[1727319470674,0.1695656,149.49,149.46,26.06577659]
[1727319471878,0.1695656,149.49,149.47,11.96375945]
[1727319473571,0.1695656,149.49,149.47,10.62607659]
[1727319474494,0.1695656,149.49,149.48,1.3375835]
[1727319474689,0.1695656,149.49,149.48,44.48186598]
[1727319475195,0.1695656,149.49,149.48,52.57572807]
[1727319477198,0.1695656,149.49,149.48,52.70121807]
[1727319478993,0.1695656,149.49,149.48,52.57572807]
[1727319479185,0.1695656,149.49,149.48,8.09386209]
[1727319479396,0.1695656,149.49,149.48,9.43124645]
[1727319480297,0.1695656,149.49,149.48,8.09386209]
[1727319480485,0.1695656,149.49,149.46,15.4397]
[1727319481314,0.1695656,149.49,149.47,1.33771161]
[1727319481608,0.1695656,149.49,149.46,15.4397]
[1727319481994,0.1695656,149.49,149.41,42.97488213]
[1727319482202,0.1695656,149.49,149.42,16.3659]
[1727319482408,0.1695656,149.49,149.42,25.92886548]
[1727319484293,0.1695656,149.49,149.43,1.33789059]
[1727319484494,0.1695656,149.49,149.44,9.56296548]
[1727319484696,0.1695656,149.49,149.45,1.33788807]
[1727319484888,0.1695656,149.49,149.44,9.56296548]
[1727319486014,0.25098,149.48,149.44,9.56296548]
[1727319486305,0.25098,149.48,149.4,9.56296548]
[1727319486490,0.1695656,149.49,149.4,9.56296548]
[1727319487508,0.25098,149.48,149.4,9.56296548]
[1727319488482,0.1695656,149.49,149.4,9.56296548]
[1727319491986,6.1968,149.48,149.4,9.56296548]
[1727319492219,0.25098,149.47,149.4,9.56296548]
[1727319493607,0.25098,149.47,149.41,1.33821516]
[1727319493787,0.25098,149.47,149.41,10.90118064]
[1727319494484,6.1968,149.48,149.41,9.56296548]
[1727319495897,0.25098,149.47,149.41,9.56296548]
[1727319496218,0.25098,149.47,149.42,1.3382228]
[1727319496593,0.25098,149.47,149.41,9.56296548]
[1727319497407,0.25098,149.47,149.42,1.33823607]
[1727319498022,0.25098,149.47,149.41,9.56296548]
[1727319499292,0.25098,149.47,149.42,1.33822427]
[1727319499701,0.25098,149.47,149.41,9.56296548]
[1727319501407,6.1968,149.48,149.41,9.56296548]
[1727319505323,0.25098,149.47,149.41,9.56296548]
[1727319508106,0.25098,149.47,149.42,1.33821573]
[1727319508517,0.25098,149.47,149.42,9.56296548]
[1727319509441,6.1968,149.48,149.42,9.56296548]
[1727319510912,0.12549,149.47,149.42,9.56296548]
[1727319513408,6.1968,149.48,149.42,9.56296548]
[1727319513608,6.1968,149.48,149.43,1.33809736]
[1727319514317,6.1968,149.48,149.42,9.56296548]
[1727319515329,6.1968,149.48,149.43,1.33812633]
[1727319516219,6.1968,149.48,149.42,9.56296548]
[1727319518729,0.12549,149.47,149.42,9.56296548]
[1727319519510,6.1968,149.48,149.42,9.56296548]
[1727319522435,0.12549,149.47,149.42,9.56296548]
[1727319523119,0.25098,149.47,149.42,9.56296548]
[1727319524432,0.25098,149.45,149.42,9.56296548]
[1727319524643,0.25098,149.45,149.37,5.40381064]
[1727319524813,0.25098,149.45,149.38,9.56296548]
[1727319525139,0.25098,149.46,149.39,1.33842574]
[1727319525438,0.25098,149.46,149.4,9.56296548]
[1727319527840,0.25098,149.47,149.41,1.33843129]
[1727319530717,0.25098,149.47,149.4,9.56296548]
[1727319531938,6.1968,149.48,149.4,9.56296548]
[1727319532237,6.1968,149.48,149.41,1.33816361]
[1727319532442,6.1968,149.48,149.41,10.90112909]
[1727319533227,6.1968,149.48,149.42,1.33816446]
[1727319533537,6.1968,149.48,149.42,10.90112994]
[1727319533932,6.1968,149.48,149.42,9.56296548]
[1727319536548,1.4382656,149.49,149.43,25.11485523]
[1727319536734,1.4382656,149.49,149.44,9.56296548]
[1727319536933,1.4382656,149.49,149.45,1.33790871]
[1727319538149,1.4382656,149.49,149.44,9.56296548]
[1727319538347,0.1695656,149.49,149.45,1.33789617]
[1727319538553,0.1695656,149.49,149.45,23.776884]
[1727319539249,0.1695656,149.49,149.44,9.56296548]
[1727319539455,0.1695656,149.49,149.45,23.776884]
[1727319540747,0.1695656,149.49,149.44,9.56296548]
[1727319543757,0.25098,149.48,149.44,9.56296548]
[1727319546531,0.1695656,149.49,149.45,1.33814911]
[1727319546749,0.1695656,149.49,149.45,10.90111459]
[1727319547660,0.1695656,149.49,149.46,1.3379711]
[1727319548033,0.1695656,149.49,149.45,9.56296548]
[1727319552243,0.1695656,149.49,149.46,1.3378833]
[1727319553860,0.1695656,149.49,149.45,9.56296548]
[1727319556139,0.1695656,149.49,149.46,1.33788686]
[1727319556639,0.1695656,149.49,149.46,10.90085234]
[1727319557044,0.1695656,149.49,149.47,9.56296548]
[1727319557256,0.1695656,149.49,149.48,1.33756356]
[1727319557461,0.1695656,149.49,149.48,10.90052904]
[1727319561684,0.1695656,149.49,149.48,9.56296548]
[1727319562660,0.1695656,149.49,149.46,16.6058]
[1727319562661,0.1695656,149.49,149.47,23.776884]
[1727319562863,0.1695656,149.49,149.46,16.6058]
[1727319564368,0.1695656,149.49,149.47,1.33771431]
[1727319564559,0.1695656,149.49,149.47,9.56296548]
[1727319564963,0.1695656,149.49,149.48,1.3375885]
[1727319565485,0.1695656,149.49,149.48,10.90055398]
[1727319565801,0.1695656,149.49,149.48,9.56296548]
[1727319568506,0.1695656,149.49,149.48,33.33984948]
[1727319572382,0.1695656,149.49,149.47,23.776884]
[1727319576086,0.1695656,149.49,149.46,16.6058]
[1727319576514,0.1695656,149.49,149.47,1.33765078]
[1727319577306,0.1695656,149.49,149.47,10.90061626]
[1727319578220,0.1695656,149.49,149.47,9.56296548]
[1727319578595,0.1695656,149.49,149.48,1.33753026]
[1727319579113,0.1695656,149.49,149.47,9.56296548]
[1727319579309,0.1695656,149.49,149.46,16.6058]
[1727319580215,0.1695656,149.49,149.47,1.33762816]
[1727319580405,0.1695656,149.49,149.46,16.6058]
[1727319581396,0.1695656,149.49,149.47,1.33771695]
[1727319582103,0.1695656,149.49,149.45,23.776884]
[1727319582715,0.1695656,149.49,149.45,33.33984948]
[1727319582918,0.1695656,149.49,149.46,1.3377159]
[1727319583306,0.1695656,149.49,149.46,9.56296548]
[1727319583901,0.1695656,149.49,149.48,23.776884]
[1727319584204,0.1695656,149.49,149.48,33.33984948]
[1727319584402,0.1695656,149.49,149.48,33.46533948]
[1727319585915,0.1695656,149.49,149.48,33.33984948]
[1727319587824,0.1695656,149.49,149.48,34.67718416]
[1727319589296,0.1695656,149.49,149.48,33.33984948]
[1727319592705,0.1695656,149.49,149.48,9.56296548]
[1727319592906,0.1695656,149.49,149.47,16.1275]
[1727319593520,0.1695656,149.49,149.47,25.69046548]
[1727319594326,0.1695656,149.49,149.48,23.776884]
[1727319594631,0.1695656,149.49,149.48,34.67724797]
[1727319594828,0.1695656,149.49,149.48,33.33984948]
[1727319595533,0.1695656,149.49,149.48,34.67734653]
[1727319595829,0.1695656,149.49,149.48,33.33984948]
[1727319598510,0.1695656,149.49,149.48,34.67726714]
[1727319599531,0.1695656,149.49,149.48,33.33984948]
[1727319604735,0.1695656,149.49,149.48,9.56296548]
[1727319605911,0.1695656,149.49,149.44,20.0]
[1727319606120,0.1695656,149.49,149.43,26.13556548]
[1727319606449,0.1695656,149.49,149.44,9.56296548]
[1727319608515,0.1695656,149.49,149.45,1.33792203]
[1727319608717,0.1695656,149.49,149.46,9.56296548]
[1727319608913,0.1695656,149.49,149.47,1.33772544]
[1727319609524,0.1695656,149.49,149.46,9.56296548]
[1727319610933,0.1695656,149.49,149.47,1.33779463]
[1727319611622,0.1695656,149.49,149.46,9.56296548]
[1727319612924,0.1695656,149.49,149.47,1.33774303]
[1727319613133,0.1695656,149.49,149.46,9.56296548]
[1727319615922,0.1695656,149.49,149.42,33.33984948]
[1727319616122,0.1695656,149.49,149.43,9.56296548]
[1727319619539,0.1695656,149.49,149.44,23.776884]
[1727319621535,0.1695656,149.49,149.45,1.33780054]
[1727319621843,0.1695656,149.49,149.46,9.56296548]
[1727319622030,0.1695656,149.49,149.47,1.33764702]
[1727319624123,0.1695656,149.49,149.45,20.0]
[1727319624528,0.1695656,149.49,149.46,25.11462262]
[1727319628458,0.1695656,149.49,149.48,23.776884]
[1727319628666,0.1695656,149.49,149.46,23.776884]
[1727319629080,0.1695656,149.49,149.45,20.0]
[1727319629366,0.1695656,149.49,149.45,23.776884]
[1727319629566,0.1695656,149.49,149.44,21.97461064]
[1727319630157,0.1695656,149.49,149.45,1.33779412]
[1727319630367,0.1695656,149.49,149.44,21.97461064]
[1727319630668,0.1695656,149.49,149.45,1.337818]
[1727319630971,0.1695656,149.49,149.44,21.97461064]
[1727319631344,0.1695656,149.49,149.45,1.33784056]
[1727319631553,0.1695656,149.49,149.45,23.776884]
[1727319631869,0.1695656,149.49,149.46,1.33771838]
[1727319632266,0.1695656,149.49,149.47,23.776884]
[1727319633064,0.1695656,149.49,149.44,5.40381064]
[1727319633266,0.1695656,149.49,149.45,23.776884]
[1727319634543,0.1695656,149.49,149.46,1.33776384]
[1727319635470,0.1695656,149.49,149.45,33.33930964]
[1727319635859,0.1695656,149.49,149.45,9.56242564]
[1727319636249,0.1695656,149.49,149.47,23.776884]
[1727319636446,0.1695656,149.49,149.48,11.55336302]
[1727319638468,0.1695656,149.49,149.48,10.21581017]
[1727319638753,0.1695656,149.49,149.48,33.99269417]
[1727319640477,0.1695656,149.49,149.48,10.21581017]
[1727319648496,0.1695656,149.49,149.48,33.99269417]
[1727319654490,0.1695656,149.49,149.48,35.33006544]
[1727319654696,0.1695656,149.49,149.48,33.99269417]
[1727319654875,0.1695656,149.49,149.48,40.10809672]
[1727319658488,0.1695656,149.49,149.48,41.44543169]
[1727319661089,0.1695656,149.49,149.48,40.10809672]
[1727319661491,0.1695656,149.49,149.48,41.44543964]
[1727319661996,0.1695656,149.49,149.48,41.44540219]
[1727319662484,0.1695656,149.49,149.48,61.69638219]
[1727319663604,0.2531201,149.52,149.49,50.140164]
[1727319663786,0.2531201,149.52,149.51,59.478164]
[1727319663990,0.2531201,149.52,149.51,75.80937672]
[1727319664500,0.2531201,149.52,149.51,76.89538385]
[1727319666100,0.2531201,149.52,149.51,75.55839672]
[1727319666307,0.2531201,149.52,149.51,76.89540018]
[1727319666999,0.2531201,149.52,149.51,77.14638018]
[1727319667202,0.2531201,149.56,149.52,20.25098]
[1727319667396,0.2531201,149.56,149.54,20.12549]
[1727319667595,0.2531201,149.56,149.55,35.32940239]
[1727319667915,0.2531201,149.56,149.55,41.44480494]
[1727319668281,0.2531201,149.56,149.55,61.44480494]
[1727319668995,0.2531201,149.56,149.55,60.10809672]
[1727319673511,0.2531201,149.56,149.55,16.33121272]
[1727319674711,0.2531201,149.56,149.55,40.10809672]
[1727319675795,0.2531201,149.56,149.55,60.10809672]
[1727319679515,0.2531201,149.56,149.55,60.35907672]
[1727319682698,0.2531201,149.56,149.55,60.23358672]
[1727319683008,0.2531201,149.56,149.55,60.10809672]
[1727319683526,0.1695656,149.58,149.56,44.027864]
[1727319683691,0.1695656,149.58,149.57,30.46679017]
[1727319684013,0.3539673,149.66,149.6,44.027864]
[1727319684224,0.3539673,149.66,149.65,65.124264]
[1727319684391,0.3539673,149.66,149.65,68.5556898]
[1727319685021,0.3539673,149.66,149.65,98.5556898]
[1727319685202,0.3539673,149.66,149.65,98.6811798]
[1727319685595,0.3539673,149.66,149.65,98.8066698]
[1727319685795,0.3539673,149.66,149.65,109.34980307]
[1727319686522,0.3539673,149.66,149.65,109.60078307]
[1727319687596,0.3539673,149.66,149.65,109.34980307]
[1727319689523,0.3539673,149.66,149.65,109.60078307]
[1727319692833,0.3539673,149.66,149.65,110.93650334]
[1727319693126,0.3539673,149.66,149.65,109.60078307]
[1727319693706,0.3539673,149.66,149.65,79.60078307]
[1727319694207,0.3539673,149.66,149.65,80.93647149]
[1727319695033,0.2531201,149.7,149.66,44.027864]
[1727319695207,0.2531201,149.7,149.69,50.277264]
[1727319695401,0.2531201,149.7,149.69,71.49731722]
[1727319695603,0.2531201,149.7,149.69,71.49741864]
[1727319695835,0.2531201,149.7,149.69,70.16227917]
[1727319696128,0.2531201,149.7,149.69,71.49745382]
[1727319696330,0.2531201,149.7,149.69,70.16227917]
[1727319696824,0.2531201,149.7,149.69,93.91287917]
[1727319697202,0.2531201,149.7,149.69,84.82197337]
[1727319697416,0.2531201,149.7,149.69,86.1573206]
[1727319698436,0.2531201,149.7,149.69,94.33949717]
[1727319699426,0.2531201,149.7,149.69,94.08851717]
[1727319699804,0.2531201,149.7,149.69,64.08851717]
[1727319700749,0.2531201,149.7,149.69,62.75316994]
[1727319701548,0.2531201,149.7,149.69,51.95906057]
[1727319701839,0.2531201,149.7,149.69,43.776884]
[1727319704532,0.2531201,149.7,149.66,20.0]
[1727319705518,6.2298058,149.75,149.66,20.0]
[1727319705819,6.2298058,149.75,149.67,1.33566765]
[1727319706215,6.2298058,149.75,149.68,23.776884]
[1727319706528,6.2298058,149.75,149.7,23.776884]
[1727319706729,6.2298058,149.75,149.69,20.0]
[1727319707029,6.2298058,149.75,149.7,25.11239779]
[1727319707430,6.2298058,149.75,149.69,23.776884]
[1727319707721,6.2298058,149.75,149.7,20.0]
[1727319708640,6.2298058,149.75,149.68,20.0]
[1727319708831,6.2298058,149.75,149.68,43.776884]
[1727319709632,6.2298058,149.75,149.69,1.33568949]
[1727319709939,0.1758058,149.75,149.71,20.0]
[1727319710146,0.1758058,149.75,149.72,1.33536055]
[1727319711458,0.1758058,149.75,149.73,1.33543533]
[1727319713744,0.1758058,149.75,149.71,20.0]
[1727319714151,0.1758058,149.75,149.72,1.33537929]
[1727319714534,0.1758058,149.75,149.71,20.0]
[1727319715538,0.1758058,149.75,149.72,23.776884]
[1727319720948,0.1758058,149.75,149.73,1.33534991]
[1727319723460,0.1758058,149.75,149.74,1.33534621]
[1727319723765,0.1758058,149.75,149.71,23.776884]
[1727319724276,0.1758058,149.75,149.72,20.0]
[1727319725666,0.1758058,149.75,149.73,1.33541441]
[1727319725844,0.1758058,149.75,149.72,20.0]
[1727319729366,0.1758058,149.75,149.73,1.33541556]
[1727319730452,0.1758058,149.75,149.72,20.0]
[1727319733377,0.1758058,149.75,149.73,1.33542648]
[1727319736766,0.1758058,149.75,149.72,20.0]
[1727319737291,0.1758058,149.75,149.7,20.0]
[1727319741987,0.1758058,149.75,149.67,0.25098]
[1727319742283,0.1758058,149.75,149.68,38.3768415]
[1727319742994,0.1758058,149.75,149.69,23.776884]
[1727319743281,0.1758058,149.75,149.7,20.0]
[1727319746080,0.1758058,149.75,149.71,1.33555663]
[1727319746298,0.1758058,149.75,149.7,20.0]
[1727319746898,0.1758058,149.75,149.7,1.33576906]
[1727319747983,0.1758058,149.75,149.7,20.0]
[1727319748369,0.1758058,149.75,149.66,20.0]
[1727319748572,0.1758058,149.75,149.66,30.19466493]
[1727319750372,0.25098,149.74,149.66,30.19466493]
[1727319750791,6.6447,149.73,149.66,30.19466493]
[1727319752312,6.6447,149.73,149.67,1.33596147]
[1727319753297,6.6447,149.73,149.66,30.19466493]
[1727319754982,6.6447,149.73,149.67,1.33596901]
[1727319755397,6.6447,149.73,149.68,10.19466493]
[1727319755680,6.6447,149.73,149.69,1.33574191]
[1727319759304,6.6447,149.73,149.68,10.19466493]
[1727319759605,6.6447,149.73,149.69,1.33577419]